[Event "13th Rheinland-Pfalz-Open 2023"]
[Site "Neuwied-Engers"]
[Date "2023.06.09"]
[Round "3.8"]
[White "Engemann, Till"]
[Black "Ronge, Tim"]
[Result "0-1"]
[Annotator "TA"]
[ECO "E35"]
[WhiteElo "2069"]
[BlackElo "2266"]
[PlyCount "82"]
[EventDate "2023.01.12"]
[EventType "swiss"]
[EventCountry "GER"]
[SourceTitle "playchess.com"]
[Source "ChessBase"]
[SourceQuality "1"]
[TimeControl "40/5400+30:1800+30"]

{[%evp 12,82,16,14,18,18,6,13,30,0,13,0,6,5,47,42,41,54,64,-30,-38,-42,-8,-204,-192,-429,-315,-330,-316,-326,-313,-352,-218,-210,-129,-132,-109,-118,-53,-50,-54,-122,-127,-166,-171,-167,-170,-135,-78,-78,-71,-76,-91,-68,-70,-345,-322,-371,-343,-382,-389,-512,-502,-508,-491,-498,-487,-627,-606,-1260,-1257,-1117,-1087]} 1. d4 {[%emt 0:00:09]} Nf6 {[%emt 0:03:42]} 2. c4 {[%emt 0:00:08]} e6 {[%emt 0:00:06]} 3. Nc3 {[%emt 0:00:08]} Bb4 {[%emt 0:00:04]} 4. Qc2 {[%emt 0:00:04]} d5 {[%emt 0:00:04]} 5. cxd5 {[%emt 0:00:04]} exd5 {[%emt 0:00:04]} 6. Bg5 {[%emt 0:03:20]} h6 {[%emt 0:01:01]} 7. Bh4 {[%emt 0:00:24] 7.Bh4 is better than 7.Bxf6.} Nc6 {[%emt 0:00:05] E35: Nimzo-Indian: Classical: 4...d5 5 cxd5 exd5.} 8. e3 {[%emt 0:02:34]} g5 {[%emt 0:00:06]} 9. Bg3 {[%emt 0:00:14]} h5 {[%emt 0:00:05] The position is equal.} 10. h4 {[%emt 0:26:53]} Ne4 {[%emt 0:00:08]} 11. Bh2 {[%emt 0:14:18]} Qe7 {[%emt 0:09:24]} 12. Bd3 {[%emt 0:21:56][%cal Rd3e4] Black must now prevent Bxe4.} Nxd4 {[%emt 0:14:38]} 13. exd4 {[%emt 0:00:08]} Nxc3+ {[%emt 0:00:06]} 14. Kf1 {[%emt 0:00:05]} Ne4 {[%emt 0:00:08] [#] ...Nd2+ is the strong threat.} 15. Nf3 $146 {[%emt 0:00:11] Wards off Nd2+} (15. f3 $14 Nd2+ 16. Kf2) ({Predecessor:} 15. f3 Nd2+ 16. Kf2 Nc4 17. Bxc4 dxc4 18. hxg5 Be6 19. Be5 O-O-O 20. Bf6 Qd7 21. Ne2 {½-½ Yu,Y (2729)-Oparin,G (2667) Sharjah Masters 6th 2023 (7)}) 15... g4 $36 {[%emt 0:03:10][%mdl 2048] Black has the initiative.} 16. Ne5 {[%emt 0:04:48]} Bf5 {[%emt 0:07:04] ...0-0-0 would be deadly.} (16... Qxh4 $2 17. Qa4+ (17. Qxc7 $2 Qxf2#) 17... c6 18. Bxe4 (18. Qxb4 $2 Qxf2#) 18... dxe4 19. Qxb4 $18) 17. Bf4 $2 {[%emt 0:05:56] [#]} ({Reject} 17. a3 Bd6 18. f3 gxf3 19. gxf3 Bh3+ 20. Ke2 Nc5 $15) (17. f3 $11 {and White has nothing to worry.} gxf3 18. gxf3) 17... f6 $1 $19 {[%emt 0:04:50]} 18. Bb5+ $2 {[%emt 0:04:12]} (18. Nf3 {keeps fighting.}) 18... Kf8 {[%emt 0:00:45]} 19. Nd3 {[%emt 0:03:03]} c6 {[%emt 0:04:44]} 20. Ba4 {[%emt 0:02:20]} Bd6 {[%emt 0:04:12]} 21. Re1 {[%emt 0:01:11]} Re8 {[%emt 0:02:05] And now ...Bxf4 would win.} 22. Qc1 {[%emt 0:01:39]} Qd7 {[%emt 0:15:48]} 23. Bc2 {[%emt 0:01:25]} Kg7 {[%emt 0:03:59]} 24. g3 {[%emt 0:00:49]} Re7 {[%emt 0:01:56] Black is much more active.} (24... Be7 $17 25. Kg2 b6) 25. Kg2 $15 {[%emt 0:00:14]} Rhe8 {[%emt 0:00:16]} 26. Bxd6 {[%emt 0:02:07]} (26. Re3 $15) 26... Nxd6 $17 {[%emt 0:04:20]} ({Inferior is} 26... Qxd6 27. Nf4 $15) 27. Nc5 {[%emt 0:02:36]} Qc8 {[%emt 0:02:41]} 28. Rxe7+ {[%emt 0:00:24]} Rxe7 {[%emt 0:00:03]} 29. Re1 {[%emt 0:00:26]} Qe8 {[%emt 0:02:43]} (29... Rxe1 $142 30. Qxe1 Kf7 31. Bxf5 Qxf5) 30. Rxe7+ {[%emt 0:00:28]} Qxe7 {[%emt 0:00:59]} 31. Bxf5 {[%emt 0:00:29]} Nxf5 {[%emt 0:00:06][%mdl 4096] Endgame KQN-KQN} 32. Qf4 {[%emt 0:00:10]} Kg6 {[%emt 0:00:09]} 33. Qb8 $2 {[%emt 0:03:20][%mdl 8192] [#]} ({Better is} 33. Kf1 $15) 33... b6 $1 $19 {[%emt 0:00:04]} ({Stronger than} 33... Nxd4 34. Qg8+ Qg7 35. Qxg7+ Kxg7 36. Nxb7 $17) 34. Qg8+ {[%emt 0:00:38]} Qg7 {[%emt 0:01:28]} 35. Qxg7+ {[%emt 0:00:26]} Nxg7 {[%emt 0:00:56] KN-KN} 36. Nb3 {[%emt 0:00:28]} Kf5 {[%emt 0:00:11] Black is clearly winning.} 37. f3 {[%emt 0:00:20]} gxf3+ {[%emt 0:01:54]} 38. Kxf3 {[%emt 0:00:07]} Ne6 {[%emt 0:00:04]} 39. a4 {[%emt 0:00:26]} a5 {[%emt 0:00:36]} 40. g4+ {[%emt 0:01:17]} hxg4+ {[%emt 0:00:04]} 41. Kg3 {[%emt 0:30:27]} Nf4 {[%emt 0:30:16] Weighted Error Value: White=0.60/Black=0.19 (very precise)} 0-1

[Event "13th Rheinland-Pfalz-Open 2023"]
[Site "Neuwied-Engers"]
[Date "2023.06.09"]
[Round "3.9"]
[White "Morlo, Michael"]
[Black "Schmohel, Andreas"]
[Result "1-0"]
[Annotator "TA"]
[ECO "D50"]
[WhiteElo "2262"]
[BlackElo "2068"]
[PlyCount "78"]
[EventDate "2023.01.12"]
[EventType "swiss"]
[EventCountry "GER"]
[SourceTitle "playchess.com"]
[Source "ChessBase"]
[SourceQuality "1"]
[TimeControl "40/5400+30:1800+30"]

{[%evp 14,78,-16,-37,-33,-42,-32,-71,-65,-66,-68,-75,-73,-101,-98,-116,-35,-38,-37,-49,76,-34,0,0,0,0,10,0,429,422,422,422,694,682,682,703,683,695,639,601,592,598,589,595,606,599,630,611,705,700,802,622,924,920,871,921,904,894,875,851,979,965,1368,1105,12838,11444,29990]} 1. c4 {[%emt 0:00:10]} e6 {[%emt 0:02:15]} 2. Nc3 {[%emt 0:00:14]} d5 {[%emt 0:00:15]} 3. d4 {[%emt 0:00:15]} Nf6 {[%emt 0:00:29]} 4. Bg5 {[%emt 0:00:23]} c5 {[%emt 0:00:16]} 5. cxd5 {[%emt 0:04:30]} cxd4 {[%emt 0:00:18]} 6. Qa4+ {[%emt 0:01:17]} Qd7 {[%emt 0:01:25]} 7. Qxd4 {[%emt 0:02:01]} Nc6 {[%emt 0:00:18]} 8. Qd2 {[%emt 0:05:16]} Nxd5 {[%emt 0:02:16] D50: Queen's Gambit Declined: Dutch-Peruvian Gambit.} 9. a3 {[%emt 0:00:37]} h6 {[%emt 0:19:20]} 10. Bh4 {[%emt 0:00:24]} g5 {[%emt 0:04:20] [#] Black is better.} 11. e4 $146 {[%emt 0:06:42]} ({Predecessor:} 11. Bg3 Bg7 12. Nxd5 Qxd5 13. Qxd5 exd5 14. O-O-O d4 15. e4 Be6 16. Nf3 O-O 17. Kb1 {½-½ Molvig,H-Pedersen,H Copenhagen Obro op 1989 (7)}) 11... Nxc3 {[%emt 0:05:41]} 12. Qxc3 {[%emt 0:00:06] And now Rd1 would win.} Qd4 {[%emt 0:00:06]} 13. Qxd4 {[%emt 0:04:09]} Nxd4 {[%emt 0:00:06]} 14. O-O-O {[%emt 0:00:06] [#] Dodges Nc2} e5 {[%emt 0:05:29]} (14... Nb3+ $1 $17 15. Kc2 Nc5) 15. Bg3 $15 {[%emt 0:01:29]} f6 {[%emt 0:01:00]} 16. h4 {[%emt 0:04:26]} Be6 {[%emt 0:28:34]} (16... g4 $1 $15) 17. Kb1 {[%emt 0:00:09]} (17. hxg5 $16 Bb3 18. Rd3) 17... Rg8 {[%emt 0:06:19]} 18. hxg5 {[%emt 0:01:24]} hxg5 {[%emt 0:00:04]} 19. Ne2 {[%emt 0:00:41]} Bc5 {[%emt 0:05:32]} 20. Rh7 {[%emt 0:08:55] aiming for Nxd4.} Kf8 $2 {[%emt 0:07:25][%mdl 8192] White stays focused until the end.} (20... Bb3 $2 21. Nxd4 (21. Rc1 Ne6 $16) 21... O-O-O 22. Rc1 Rxd4 23. Rxc5+ $18) (20... O-O-O $1 $11 {and Black is okay.} 21. Nxd4 Bxd4) 21. Nxd4 $18 {[%emt 0:01:30][%mdl 64] [#] Deflection. White is clearly winning.} (21. Rxb7 Rg7 22. Rxg7 (22. Nxd4 Bxd4 23. Rxg7 Kxg7 $14) 22... Kxg7 $14) 21... Bxd4 {[%emt 0:00:09]} 22. Rxd4 {[%emt 0:00:02] Rd6 is the strong threat.} (22. Rxb7 Rg7 23. Rxg7 (23. Ba6 Rxb7 24. Bxb7 Rd8 $14) 23... Kxg7 $14) 22... exd4 {[%emt 0:01:02]} (22... Rg7 $142) 23. Bd6+ {[%emt 0:00:16]} (23. Rxb7 Rg7 24. Rxg7 Kxg7 $11) 23... Ke8 {[%emt 0:09:21]} 24. Re7+ {[%emt 0:00:58]} (24. Rxb7 Bd7 $14) 24... Kd8 {[%emt 0:00:00]} 25. Rxe6 {[%emt 0:00:12]} Rh8 {[%emt 0:00:00]} 26. Bb5 {[%emt 0:10:00]} ({Weaker is} 26. Rxf6 Rh1 $14) 26... a6 {[%emt 0:00:00]} 27. Be7+ {[%emt 0:00:27]} Kc7 {[%emt 0:00:00]} 28. Ba4 {[%emt 0:00:26]} b5 {[%emt 0:00:00]} 29. Bb3 {[%emt 0:00:15]} d3 {[%emt 0:00:00]} 30. Kc1 {[%emt 0:03:30]} ({Not} 30. Rxf6 Rh1+ 31. Ka2 d2 $16) 30... Kd7 {[%emt 0:02:03]} 31. Bxf6 {[%emt 0:01:22]} Rh2 {[%emt 0:01:17]} 32. Bxg5 {[%emt 0:02:47]} Rxg2 {[%emt 0:00:35]} 33. Re7+ {[%emt 0:00:48]} Kc6 {[%emt 0:00:30]} 34. Bd5+ {[%emt 0:00:12]} Kd6 {[%emt 0:00:03]} 35. Re6+ {[%emt 0:00:54]} Kd7 {[%emt 0:00:19]} 36. Be3 {[%emt 0:00:08]} Rc8+ {[%emt 0:00:43]} 37. Kd2 {[%emt 0:00:11]} Rc2+ {[%emt 0:00:20]} 38. Kxd3 {[%emt 0:00:04]} Rxb2 {[%emt 0:00:18]} 39. Rxa6 {[%emt 0:00:09]} Rg6 {[%emt 0:01:52] Weighted Error Value: White=0.25 (precise) /Black=0.61} 1-0

[Event "13th Rheinland-Pfalz-Open 2023"]
[Site "Neuwied-Engers"]
[Date "2023.06.09"]
[Round "3.10"]
[White "Arslan, Ulas"]
[Black "Polster, Christian"]
[Result "0-1"]
[Annotator "TA"]
[ECO "B31"]
[WhiteElo "2058"]
[BlackElo "2250"]
[PlyCount "60"]
[EventDate "2023.01.12"]
[EventType "swiss"]
[EventCountry "GER"]
[SourceTitle "playchess.com"]
[Source "ChessBase"]
[SourceQuality "1"]
[TimeControl "40/5400+30:1800+30"]

{[%evp 13,60,14,6,-16,-9,-38,-17,-75,-43,-93,-84,-91,-94,-105,-76,-95,-86,-125,-39,-98,-64,-79,-61,-61,-50,-102,-119,-133,-146,-118,-136,-131,-116,-118,-89,-110,-59,-117,-52,-48,-46,-143,-53,-127,-136,-286,-240,-216,-195]} 1. e4 {[%emt 0:00:03]} c5 {[%emt 0:00:18]} 2. Nf3 {[%emt 0:00:09]} Nc6 {[%emt 0:00:58]} 3. Bb5 {[%emt 0:01:12]} g6 {[%emt 0:00:25]} 4. O-O {[%emt 0:01:05]} Bg7 {[%emt 0:00:05]} 5. c3 {[%emt 0:00:31]} e5 {[%emt 0:00:48]} 6. d3 {[%emt 0:03:14]} Nge7 {[%emt 0:01:49]} 7. Be3 {[%emt 0:00:43]} d6 {[%emt 0:01:42]} 8. Qd2 {[%emt 0:08:04] B31: Sicilian: 2...Nc6 3 Bb5 g6.} O-O {[%emt 0:05:57]} 9. a4 {[%emt 0:05:46] [#]} Bg4 $146 {[%emt 0:21:48]} (9... Na5 $5 {[%cal Ra5b3]} 10. Qc2 Qc7 $15) ({Predecessor:} 9... Na5 10. Bc4 a6 11. Ba2 Bd7 12. b4 cxb4 13. cxb4 Nac6 14. a5 Bg4 15. Nh4 Nd4 {1-0 Biro,A (2294)-Farkas,G (2230) HUN-chT2 Charousek 0001 2000 (6)}) 10. Na3 {[%emt 0:04:07]} (10. Qe2 $11) 10... Na5 {[%emt 0:20:42] Strongly threatening ...Bxf3.} 11. Rab1 {[%emt 0:10:53]} ({Better is} 11. Qd1 $15) 11... a6 $17 {[%emt 0:06:45]} 12. Bc4 {[%emt 0:03:16]} Nxc4 {[%emt 0:00:38]} 13. Nxc4 {[%emt 0:00:09]} b5 {[%emt 0:01:24]} 14. axb5 {[%emt 0:00:41]} axb5 {[%emt 0:00:13]} 15. Na3 {[%emt 0:00:11]} Qd7 {[%emt 0:02:44]} (15... Bxf3 $17 16. gxf3 Qd7) 16. Nh4 {[%emt 0:03:43]} (16. Ng5 $15) 16... Be6 {[%emt 0:11:22]} 17. f4 {[%emt 0:12:06]} exf4 {[%emt 0:00:37]} (17... b4 $5 18. Nc4 exf4 19. Bxf4 Ra2 20. cxb4 (20. Bxd6 $2 {perishes.} Bxc4 21. dxc4 bxc3 $19) 20... d5 21. exd5 Nxd5 $17) 18. Bxf4 {[%emt 0:01:49]} d5 {[%emt 0:00:59][%cal Bd6d5,Bd5d4][%mdl 32]} 19. e5 {[%emt 0:09:07]} (19. Nf3 $15) 19... d4 {[%emt 0:00:49]} 20. c4 {[%emt 0:06:18]} bxc4 {[%emt 0:02:06]} 21. Nxc4 {[%emt 0:00:09]} Bxc4 {[%emt 0:00:15]} 22. dxc4 {[%emt 0:00:08]} Nc6 {[%emt 0:19:06]} 23. Nf3 {[%emt 0:01:12]} Rfe8 {[%emt 0:00:00][%cal Rg7e5]} 24. Rbe1 {[%emt 0:01:39]} Ra2 {[%emt 0:00:00]} (24... Qa7 $17 25. Qd3 Qd7) 25. Rf2 {[%emt 0:01:22]} (25. Ng5 $15) 25... Na5 {[%emt 0:00:00]} (25... Qe7 $17 26. Qc1 Raa8) 26. Qd3 $15 {[%emt 0:04:45]} Qb7 $36 {[%emt 0:00:00][%mdl 2048] Black is more active.} 27. Bc1 {[%emt 0:02:10]} ({White should play} 27. Ng5 $15) 27... Qb3 {[%emt 0:00:00] Black is more active.} (27... Nc6 $17 {[%cal Rc6e5]} 28. e6 Nb4 29. exf7+ Qxf7) 28. Qxb3 {[%emt 0:01:45]} (28. Qe4 $1 $15) 28... Nxb3 $17 {[%emt 0:00:00]} 29. Ng5 {[%emt 0:00:21]} (29. Bf4 $17) 29... Nxc1 {[%emt 0:00:00]} (29... Rxe5 30. Rxe5 Bxe5 31. Nxf7 Bxh2+ 32. Kxh2 $17) (29... Bxe5 30. Nxf7 Nxc1 31. Nxe5 $15) 30. Rxc1 {[%emt 0:00:09]} Bh6 {[%emt 0:00:00] Weighted Error Value: White=0.42/Black=0.27 (precise)} ({Stronger than} 30... Bxe5 31. Nxf7 Bg7 32. Rd1) 0-1

[Event "13th Rheinland-Pfalz-Open 2023"]
[Site "Neuwied-Engers"]
[Date "2023.06.09"]
[Round "4.1"]
[White "Iolis, Oleg"]
[Black "Peng, Li Min"]
[Result "1/2-1/2"]
[Annotator "TA"]
[ECO "C70"]
[WhiteElo "2168"]
[BlackElo "2530"]
[PlyCount "47"]
[EventDate "2023.01.12"]
[EventType "swiss"]
[EventCountry "GER"]
[SourceTitle "playchess.com"]
[Source "ChessBase"]
[SourceQuality "1"]
[TimeControl "40/5400+30:1800+30"]

{[%evp 16,47,24,28,44,21,35,33,38,27,45,19,22,18,16,16,16,23,22,15,25,5,19,15,93,0,0,0,0,0,0,0,0,-455]} 1. e4 {[%emt 0:00:02]} e5 {[%emt 0:11:27]} 2. Nf3 {[%emt 0:01:40]} Nc6 {[%emt 0:00:12]} 3. Bb5 {[%emt 0:00:12][%cal Bf1b5,Bb5a4,Ba4b3][%mdl 32]} a6 {[%emt 0:00:21]} 4. Ba4 {[%emt 0:00:03]} b5 {[%emt 0:00:12]} 5. Bb3 {[%emt 0:00:03]} Na5 {[%emt 0:00:03]} 6. O-O {[%emt 0:07:08]} d6 {[%emt 0:04:58]} 7. d4 {[%emt 0:05:55]} exd4 {[%emt 0:00:33]} 8. Nxd4 {[%emt 0:00:10]} Bb7 {[%emt 0:01:13]} 9. Bd2 $1 {[%emt 0:07:57] 9.Bd2 scores better than 9.c4.} Nxb3 {[%emt 0:00:48] C70: Ruy Lopez: 3...a6 4 Ba4, Norwegian and Delayed Schliemann.} 10. axb3 {[%emt 0:02:07]} c5 {[%emt 0:04:15]} 11. Nf5 {[%emt 0:02:01] Hoping for Ba5.} g6 {[%emt 0:05:44] [#] White is slightly better.} 12. Ba5 $146 {[%emt 0:05:57]} ({Predecessor:} 12. Ng3 Bg7 13. Bc3 Nf6 14. b4 c4 15. Re1 O-O 16. f4 Re8 17. Nd2 Qb6+ 18. Kh1 {0-1 Mavridis,A (1065)-Kareklas,K (1126) GRE-ch U10 Porto Rio 2016 (9)}) 12... Qd7 {[%emt 0:00:43]} 13. Ne3 {[%emt 0:00:29] A dynamic duo of knights.} Nf6 {[%emt 0:07:23]} 14. Nc3 $36 {[%emt 0:00:46][%mdl 2048] [#] Black must now prevent Ncd5. White has some pressure.} Bg7 {[%emt 0:10:17]} 15. Ned5 {[%emt 0:05:52]} Nxd5 {[%emt 0:00:34]} 16. Nxd5 {[%emt 0:00:05]} Bxd5 {[%emt 0:03:58]} 17. Qxd5 {[%emt 0:00:08]} O-O {[%emt 0:09:36]} 18. Rad1 {[%emt 0:58:55]} (18. c3 {simplifies} Rae8 19. Rfd1 Re5 20. Qxd6 Qxd6 21. Rxd6 Rxe4 22. Rxa6 Rfe8 23. g3) 18... Rfe8 (18... b4 {simplifies} 19. Qxc5 dxc5 20. Rxd7 Bxb2 21. Rfd1 Rae8) 19. Rfe1 {[%emt 0:00:30] White wants to play e5.} Bxb2 {[%emt 0:37:43] [#]} (19... Qe6 $11 {remains equal.}) 20. c3 {White is more active.} (20. e5 $1 $16) 20... b4 $11 {[%emt 0:00:30] The position is equal.} 21. cxb4 Qb5 {[%emt 0:00:30]} 22. Qxd6 {[%emt 0:01:30]} Bc3 23. Re3 {[%emt 0:00:30]} cxb4 {[%emt 0:01:00]} 24. Bb6 $2 {[%emt 0:00:30][%mdl 40960] Weighted Error Value: White=0.11 (very precise) /Black=0.10 (very precise) . An unexpected result.} (24. Rd5 $11 {and White stays safe.} Re6 25. Qc7) 1/2-1/2

[Event "13th Rheinland-Pfalz-Open 2023"]
[Site "Neuwied-Engers"]
[Date "2023.06.09"]
[Round "4.2"]
[White "Winterberg, Lukas"]
[Black "Bleecke, Sebastian"]
[Result "1-0"]
[Annotator "TA"]
[ECO "D85"]
[WhiteElo "2405"]
[BlackElo "2164"]
[PlyCount "71"]
[EventDate "2023.01.12"]
[EventType "swiss"]
[EventCountry "GER"]
[SourceTitle "playchess.com"]
[Source "ChessBase"]
[SourceQuality "1"]
[TimeControl "40/5400+30:1800+30"]

{[%evp 15,70,0,10,-16,0,0,8,9,1,7,10,7,18,6,12,0,23,8,32,-10,7,22,10,11,76,80,218,213,218,203,181,217,184,179,170,143,151,132,127,138,229,230,252,185,510,508,772,685,29969,29969,29986,29987,29997,29998,29998,29999,29999]} 1. d4 {[%emt 0:00:03]} Nf6 {[%emt 0:00:08]} 2. Nf3 {[%emt 0:00:13]} g6 {[%emt 0:00:08]} 3. c4 {[%emt 0:00:12]} Bg7 {[%emt 0:00:07]} 4. Nc3 {[%emt 0:00:12]} d5 {[%emt 0:00:06]} 5. cxd5 {[%emt 0:00:15]} Nxd5 {[%emt 0:00:07]} 6. e4 {[%emt 0:00:21]} Nxc3 {[%emt 0:00:07]} 7. bxc3 {[%emt 0:00:15]} c5 {[%emt 0:00:07]} 8. Bb5+ {[%emt 0:00:17] 8.h3 is the modern continuation.} Nc6 {[%emt 0:00:12][%cal Rc5d4,Bb8c6,Bc6e5,Be5f3][%mdl 32]} 9. Rb1 {[%emt 0:00:13] D85: Exchange Grünfeld: Unusual White 7th moves and lines with 7 Nf3.} ({Much worse is} 9. dxc5 Bxc3+ 10. Bd2 Bxa1 11. Qxa1 f6 $17) 9... O-O {[%emt 0:00:08][%cal Rc5d4]} 10. d5 {[%emt 0:00:09]} Ne5 {[%emt 0:00:11]} 11. O-O {[%emt 0:00:12] The position is equal.} a6 {[%emt 0:00:03]} 12. Be2 {[%emt 0:00:14]} Nxf3+ {[%emt 0:00:07]} 13. Bxf3 {[%emt 0:00:14]} b5 {[%emt 0:00:05]} 14. Be3 {[%emt 0:00:54]} Qd6 {[%emt 0:00:08]} 15. Qd2 {[%emt 0:01:20] [#]} Rd8 $146 {[%emt 0:20:38]} ({Predecessor:} 15... Be5 16. g3 f5 17. exf5 Bxf5 18. Rbd1 Bh3 19. Bg2 Bxg2 20. Kxg2 Rad8 21. Qc2 c4 {0-1 Akobian,V (2614)-Grandelius,N (2661) FIDE World Cup 2021 (2.4)}) 16. Rfd1 {[%emt 0:01:37]} Rb8 {[%emt 0:02:04]} 17. a4 {[%emt 0:07:02]} Bd7 {[%emt 0:06:05]} 18. axb5 {[%emt 0:02:28]} axb5 {[%emt 0:01:03]} 19. Be2 {[%emt 0:02:28]} f5 {[%emt 0:11:57]} (19... c4 $11) 20. exf5 $16 {[%emt 0:05:38]} b4 {[%emt 0:04:28]} (20... Be5 $16 {was worth a try.}) 21. cxb4 $18 {[%emt 0:01:52]} cxb4 {[%emt 0:00:32]} 22. Bf4 {[%emt 0:02:48]} Be5 {[%emt 0:00:40]} 23. Bxe5 {[%emt 0:00:11]} Qxe5 {[%emt 0:00:02]} 24. fxg6 {[%emt 0:00:57]} ({Weaker is} 24. Rxb4 Rxb4 25. Qxb4 Qxe2 $17) 24... hxg6 {[%emt 0:00:07]} 25. Bc4 {[%emt 0:01:44] [#] Re1 is the strong threat.} ({Stronger than} 25. Rxb4 Rxb4 26. Qxb4 Qxe2 $17) 25... Qd6 {[%emt 0:01:19]} 26. Qh6 {[%emt 0:02:30] Threatens to win with Re1.} Bf5 {[%emt 0:01:06]} 27. Rb2 {[%emt 0:06:11] Strongly threatening Re1.} Rdc8 {[%emt 0:00:32]} (27... Qf6 $16 {keeps fighting.}) 28. Bb3 {[%emt 0:01:26] aiming for Re2.} Rc3 {[%emt 0:01:51]} 29. Re1 {[%emt 0:02:28][%cal Og2g4] And now g4! would win.} Rxb3 $2 {[%emt 0:10:18]} (29... Qf6 {is more resistant.} 30. d6+ e6) 30. Rxb3 {[%emt 0:00:04]} Qxd5 {[%emt 0:00:10]} (30... Qf6 $142 31. Qf4 Qd6) 31. Rbe3 {[%emt 0:01:33]} e6 {[%emt 0:00:51] [#]} 32. g4 $1 {[%emt 0:00:19] White mates.} Bc2 {[%emt 0:01:40]} (32... Rb7 33. Rh3) 33. Rxe6 {[%emt 0:00:25]} b3 {[%emt 0:00:09]} 34. Re8+ {[%emt 0:00:08]} Rxe8 {[%emt 0:00:07]} 35. Rxe8+ {[%emt 0:00:08]} Kf7 {[%emt 0:00:03]} 36. Qf8# {[%emt 0:00:48] Weighted Error Value: White=0.05 (flawless) /Black=0.66} 1-0